Cogmind - Beta 16.1 @@@ ROGUE MODE // 2026.02.10 @ 17:26:30 Player: horseradish Result: Self-destructed Performance ------------- Evolutions (1) 500 Regions Visited (2) 400 Robots Destroyed (8) 40 Value Destroyed (265) 265 Prototype IDs (0) 0 Alien Tech Used (0) 0 Bonus (0) 0 TOTAL SCORE: 1205 Bonus ------- None Cogmind --------- Core Integrity 374/400 Matter 298/300 Energy 99/100 System Corruption 0% Temperature Cool (27) Movement Core (50) Location -9/Materials Parts ------- > --- POWER (1) -------- (None) > --- PROPULSION (3) --- (None) > --- UTILITY (3) ------ (None) > --- WEAPON (2) ------- Medium Laser > --- INVENTORY (5) ---- Aluminum Leg Compact Wheel Compact Wheel Beam Cannon Light Assault Rifle Peak State ------------ > --- POWER ------------ Ion Engine > --- PROPULSION ------- Aluminum Leg Aluminum Leg > --- UTILITY ---------- Heat Sink Large Matter Pod > --- WEAPON ----------- Beam Cannon Assault Rifle > --- INVENTORY -------- Aluminum Leg Wheel Wheel Light Assault Rifle Light Assault Rifle [Rating: 7] Favorites ----------- Power Ion Engine Engine Ion Engine Propulsion Aluminum Leg Leg Aluminum Leg Utility Heat Sink Device Heat Sink Storage Large Matter Pod Weapon Assault Rifle Energy Gun Medium Laser Energy Cannon Beam Cannon Ballistic Gun Assault Rifle Build | -11 -10 -9 ------- Run | Yrd Mat Mat Slots Evolved 2 | . . 2 Power . | . . . Propulsion 1 | . . 1 Utility 1 | . . 1 Weapon . | . . . Parts Attached 16 | 7 8 1 Power 4 | 2 2 . Engine 4 | 2 2 . Core . | . . . Reactor . | . . . Propulsion 4 | 3 1 . Treads . | . . . Leg 4 | 3 1 . Wheel . | . . . Hover . | . . . Flight . | . . . Utility 3 | . 3 . Device 2 | . 2 . Storage 1 | . 1 . Processor . | . . . Hackware . | . . . Protection . | . . . Artifact . | . . . Weapon 5 | 2 2 1 Energy Gun 1 | . . 1 Energy Cannon 1 | . 1 . Ballistic Gun 3 | 2 1 . Ballistic Cannon . | . . . Launcher . | . . . Special Weapon . | . . . Impact Weapon . | . . . Slashing Weapon . | . . . Piercing Weapon . | . . . Special Melee Weapon . | . . . Unidentified Prototypes . | . . . Parts Lost 7 | . 1 6 Power 2 | . 1 1 Propulsion 2 | . . 2 Utility 2 | . . 2 Weapon 1 | . . 1 Highest Loss Streak 6 | . 1 6 To Critical Strikes . | . . . Average Backups 3 | 2 3 5 Power . | . . . Propulsion 2 | 1 2 3 Utility . | . . . Weapon 1 | . 1 2 Tool/Special . | . . . Unused Backups 4 | . 3 1 Power . | . . . Propulsion 3 | . 2 1 Utility . | . . . Weapon 1 | . 1 . Tool/Special . | . . . Average Slot Usage (%) 87 | . 91 75 Engine 12 | . 13 10 Leg 26 | . 28 22 Device 12 | . 9 21 Storage 7 | . 10 . Energy Gun 2 | . . 9 Energy Cannon 8 | . 10 2 Ballistic Gun 15 | . 17 11 Peak Build Rating 7 | 5 7 7 Average Rating 5 | 3 6 6 On Entrance 4 | . 5 7 Avg Prop Armor Cover (%) . | . . . Naked Turns . | . . . Heaviest Build 14 | 8 14 12 Greatest Support 20 | 20 20 20 Greatest Overweight (x) . | . . . Average Overweight (x) . | . . . Largest Inventory Capacity 5 | 5 5 5 Average Capacity 5 | 5 5 5 Most Carried 5 | 4 5 5 Average Carried 3 | 2 3 5 Final Capacity 5 | 5 5 5 Final Carried 5 | 4 5 5 Class Distribution -------------------- 79% | Mutant 20% | Scavenger-Mutant Dominant Class ---------------- Mutant | -10/Materials Mutant | -9/Materials Resources | -11 -10 -9 ----------- Run | Yrd Mat Mat Matter Collected 524 | 274 250 . Remotely . | . . . Salvage Created 342 | 36 250 56 Parts 12 | 2 7 3 Haulers Intercepted . | . . . Recyclers Shooed . | . . . Parts Field Recycled . | . . . Retrieved Matter . | . . . Parts Self-Destructed . | . . . Prevented . | . . . Parts Restored . | . . . Kills | -11 -10 -9 ------- Run | Yrd Mat Mat Combat Hostiles Destroyed 7 | 1 5 1 Guns 2 | 1 . 1 Cannons 5 | . 5 . Classes Destroyed 3 | 1 1 1 Watcher 1 | . 1 . Grunt 6 | 1 5 . Sentry 1 | . . 1 Best Kill Streak 2 | 1 2 1 Combat Bots Only 2 | 1 2 1 Max Kills in Single Turn 1 | 1 1 1 Gunslinging . | . . . Exploded . | . . . Melee . | . . . Uniques/NPCs Destroyed . | . . . Combat | -11 -10 -9 -------- Run | Yrd Mat Mat Hostile Shots Fired 90 | 10 38 42 Missed 24 | . 9 15 Hits 66 | 10 29 27 Projectile 66 | 10 29 27 Critical Strikes 1 | . . 1 Damage Taken 777 | 110 317 350 Core 89 | 11 52 26 Absorbed by Shields . | . . . Core Remaining (%) 84 | 95 74 . Volleys Fired 34 | 6 23 5 Largest 2 | 2 2 2 Hottest 80 | 40 80 70 Shots Fired 67 | 12 46 9 Gun 44 | 12 23 9 Cannon 23 | . 23 . Launcher . | . . . Special . | . . . Kinetic 39 | 12 23 4 Thermal 28 | . 23 5 Explosive . | . . . Electromagnetic . | . . . Robot Hit Streak 4 | 2 4 1 Robot Miss Streak 5 | 5 3 4 Penetration Max . | . . . Secondary Targets . | . . . Shots Hit Robots 30 | 4 23 3 Core Hits 12 | 2 8 2 Critical Kills . | . . . Critical Parts Destroyed . | . . . Critical Strikes . | . . . Melee Attacks . | . . . Impact . | . . . Slashing . | . . . Piercing . | . . . Sneak Attacks . | . . . Combat Hostiles . | . . . Follow-up Attacks . | . . . Damage Inflicted 419 | 52 330 37 Guns 197 | 52 108 37 Cannons 222 | . 222 . Explosions . | . . . Melee . | . . . Ramming . | . . . Kinetic 160 | 52 108 . Thermal 259 | . 222 37 Explosive . | . . . Electromagnetic . | . . . Impact . | . . . Slashing . | . . . Piercing . | . . . Highest Corruption . | . . . Average Corruption . | . . . Corruption Purged . | . . . Corruption Blocked . | . . . Overload Shots . | . . . Overflow Damage . | . . . Projectiles . | . . . Explosions . | . . . Melee . | . . . Knockbacks . | . . . Impact . | . . . Kinetic . | . . . Secondary . | . . . Self-Inflicted Damage . | . . . Shots . | . . . Rammed . | . . . Targets Rammed . | . . . Kicked . | . . . Crushed . | . . . Highest Temperature 100 | 6 100 27 Average Temperature 27 | 6 32 19 Received Heat Transfer 390 | 60 174 156 Siege Activations . | . . . Martial Activations . | . . . Shielding Activations . | . . . Robots Disrupted . | . . . Combat Hostiles . | . . . Robots Corrupted . | . . . Combat Hostiles . | . . . Parts Fried . | . . . Impact Corruptions . | . . . Robots Melted . | . . . Combat Hostiles . | . . . Parts Melted . | . . . Heat Transferred 592 | . 481 111 Parts Sabotaged . | . . . Parts Stolen . | . . . Parts Stripped . | . . . Power Chain Reactions . | . . . Alert | -11 -10 -9 ------- Run | Yrd Mat Mat Maximum Alert Level . | . . . Low Security (%) 100 | 100 100 100 Level 1 . | . . . Level 2 . | . . . Level 3 . | . . . Level 4 . | . . . Level 5 . | . . . High Security . | . . . Max Security . | . . . Peak Influence 63 | 20 63 30 Initial 9 | . 6 9 Average 17 | 1 28 2 Influence Increases 191 | 20 141 30 Destroy 0b10 Robot/C 140 | 20 100 20 Destroy 0b10 Robot/NC 5 | . 5 . Destroy Leader 22 | . 12 10 Successful Hack 8 | . 8 . Destroy Structure 1 | . 1 . Lose Combat Pursuer 15 | . 15 . Influence Decreases 171 | 10 128 33 Entered New Map 18 | . 4 14 Time Decay 133 | 10 114 9 Lost Part 20 | . 10 10 Squads Dispatched 3 | . 1 2 Investigation 1 | . . 1 Extermination . | . . . Reinforcement 2 | . 1 1 Assault . | . . . Garrison . | . . . Intercept . | . . . Searches Triggered . | . . . Construction Impeded . | . . . Haulers Reinforced . | . . . Active Scanning Responses . | . . . Cargo Convoy Interrupts . | . . . Stealth | -11 -10 -9 --------- Run | Yrd Mat Mat Distress Signals 5 | . 3 2 Communications Jammed . | . . . Distress Signals . | . . . Times Spotted 18 | 1 9 8 Peak Tracking Total 9 | 1 4 9 Tactical Retreats 1 | . 1 . Traps | -11 -10 -9 ------- Run | Yrd Mat Mat Traps Triggered . | . . . Indirectly . | . . . Trap Hack Attempts . | . . . Triggered . | . . . Disarmed . | . . . Reprogrammed . | . . . Reused . | . . . Traps Extracted . | . . . Installed . | . . . Triggered . | . . . Machines | -11 -10 -9 ---------- Run | Yrd Mat Mat Machines Disabled . | . . . Max in Single Turn . | . . . Machines Repaired . | . . . Machines Dismantled . | . . . Machines Sabotaged . | . . . Overloaded Fab Kills . | . . . Hacking | -11 -10 -9 --------- Run | Yrd Mat Mat Machines Accessed 2 | . 1 1 Terminals 1 | . 1 . Fabricators . | . . . Repair Stations . | . . . Recycling Units . | . . . Scanalyzers 1 | . . 1 Garrison Access . | . . . Total Hacks 9 | . 4 5 Successful 7 | . 4 3 Failed 2 | . . 2 Catastrophic . | . . . Database Lockouts . | . . . Manual 2 | . 2 . Terminals 4 | . 4 . Fabricators . | . . . Repair Stations . | . . . Recycling Units . | . . . Scanalyzers 5 | . . 5 Garrison Access . | . . . Terminal Hacks 4 | . 4 . Record 3 | . 3 . Locate Traps 1 | . 1 . Fabricator Hacks . | . . . Repair Station Hacks . | . . . Recycling Unit Hacks . | . . . Scanalyzer 3 | . . 3 Insert Component 1 | . . 1 Analyze 1 | . . 1 Retrieve Study 1 | . . 1 Garrison Access Hacks . | . . . Unauthorized Hacks . | . . . Terminals . | . . . Fabricators . | . . . Repair Stations . | . . . Recycling Units . | . . . Scanalyzers . | . . . Garrison Access . | . . . Data Cores Recovered . | . . . Used . | . . . Hacking Detections 2 | . 1 1 Full Trace Events 1 | . . 1 Feedback Events . | . . . Feedback Blocked . | . . . Robot Schematics Acquired . | . . . Robots Built . | . . . Authchips . | . . . Time . | . . . Total Robot Build Rating . | . . . Part Schematics Acquired 1 | . . 1 Parts Built . | . . . Authchips . | . . . Time . | . . . Total Part Build Rating . | . . . Part Studies Acquired 1 | . . 1 Parts Repaired . | . . . Time . | . . . Parts Recycled . | . . . Recycled Matter . | . . . Retrieved Matter . | . . . Retrieved Components . | . . . Parts Scanalyzed 1 | . . 1 Part Schematics Acquired 1 | . . 1 Parts Damaged . | . . . Bothacking | -11 -10 -9 ------------ Run | Yrd Mat Mat Used RIF Installer . | . . . Robots Hacked . | . . . Non-combat . | . . . Combat . | . . . Robot Hacks Applied . | . . . Relay Couplers Released . | . . . Fabnet Peak Effective % . | . . . Robots Rewired . | . . . Allies Hacked . | . . . Hacks Repelled . | . . . Allies | -11 -10 -9 -------- Run | Yrd Mat Mat Total Allies . | . . . Largest Group . | . . . Highest-Rated Group . | . . . Highest-Rated Ally . | . . . Total Orders . | . . . Ally Attacks . | . . . Total Damage . | . . . Kills . | . . . Allies Corrupted . | . . . Allies Melted . | . . . Intel | -11 -10 -9 ------- Run | Yrd Mat Mat Active Infowar (turns) 125 | . 23 102 Terrain 125 | . 23 102 Robot Analysis Total . | . . . Derelict Logs Recovered . | . . . Drone Launches . | . . . Drone Recoveries . | . . . Exploration | -11 -10 -9 ------------- Run | Yrd Mat Mat Turns Passed 515 | 101 311 103 Spaces Moved 332 | 67 184 81 Core 14 | 14 . . Treads . | . . . Legs 318 | 53 184 81 Wheels . | . . . Hover . | . . . Flight . | . . . Fastest Speed 50 | 50 120 105 Average Speed 113 | 105 120 106 Slowest Speed 120 | 120 120 120 Overloaded Moves . | . . . Propulsion Burnouts . | . . . Robots Hopped . | . . . Potential Cave-ins . | . . . Cave-ins Triggered . | . . . Exploration Rate (%) 15 | 4 31 10 Regions Visited 2 Branch Regions . Pre-discovered Areas . | . . . Known Exits Taken . | . . . Unknown Exits Taken 2 | 1 1 . Scrap Searched . | . . . Spaces Dug . | . . . Terrain Destroyed . | . . . Melee . | . . . Projectile . | . . . AOE . | . . . Terrain Rammed . | . . . Walls Destroyed . | . . . Machines Disabled . | . . . Actions | -11 -10 -9 --------- Run | Yrd Mat Mat Total 399 | 83 229 87 Wait . | . . . Move 330 | 66 183 81 Hop . | . . . Pick Up 9 | 3 6 . Fast Attach 8 | 5 3 . Attach . | . . . Detach . | . . . Swap 9 | 2 6 1 Drop 9 | 1 8 . Fire 34 | 6 23 5 Melee . | . . . Ram . | . . . Kick . | . . . Crush . | . . . Escape Stasis . | . . . Rewire . | . . . Trap . | . . . Miscellaneous . | . . . Route ------- -11/Scrapyard -10/Materials -9/Materials History --------- Turn | Location | Event 2 | -11/Scrapyard | Met Revision 17 67 | -11/Scrapyard | Discovered new exit (range 8) 102 | -11/Scrapyard | Entered Materials 362 | -10/Materials | Discovered new exit (range 16) 413 | -10/Materials | Entered another Materials area 413 | -9/Materials | Evolved 2 slots: Propulsion x1, Utility x1 516 | -9/Materials | Self-destructed Last Messages --------------- -15 time/move ALERT: Suspicious activity at Scanalyzer M002. Dispatching Investigation squad. [Achievement: One Hack Too Far] Schematics can be used at fabricators to build something. View all schematics in possession via the status screen. K-01 Serf collects debris. W-16 Scout sends out distress signal. K-01 Serf collects debris. O-16 Technician sends out distress signal. K-01 Serf collects debris. Heat Sink destroyed. ALERT: Hostiles spotted, dispatching reinforcements to Terminal M005. Ion Engine destroyed. Aluminum Leg+ destroyed. Critical hit (Burn: +37). Assault Rifle destroyed. Aluminum Leg+ destroyed. Y-45 Defender destroyed. Terrain Scanner destroyed. Map ----- +----------------------------------------------------+ | | | | | | | | | | | | | | | | | | | | | ?????????????????????????????????????????????????? | | ???????????????#?#???????????????????????????????? | | ?????????????#???????????????????????????????????? | | ??????#??#???????####????#???????????????????????? | | ????????? ??????? ?????????????????????????????? | | ????????# #??????# #####+###?????????????????????? | | ????????# ######## # "T"?????????????????????? | | ????????# # / / [! #???????????????????? | | ?##?????# # # # ]! = #?#?????????????????? | | ?######## # # #???? #???????????????????? | | + + #??????#?##???????????????????? | | ?######## # #+#########?????????????????????? | | ??????#?# # # g #?????????????????????? | | ????????# ##+##### T =!! [##??? ????????????????? | | ######### ## #???# Y=! !%#????????????????????? | | ## #???# g! @=##????????????????????? | | ## #??####+#######?????????????????????? | | # #???? ????????????????????????????? | | # #??? ?????????????? ????????????? | | ######## # #?? ????????????????????????????? | | ???????##+## #? """ "????????????????????????????? | | ???#???# # ## """ "??????#?????????????????????? | | ???????# # ?+ """ ""???????????????????????????? | | ???????# # ?#??? ?????????????????????????????? | | ???????# # ?#??? ?????????????????????????????? | | ???????# # ????##+?????????????????????????????? | | ???????# # ????????????????????????????????????? | | #??????# # ????????????????????????????????????? | | ???????#####?????????????? ??????????????????????? | | ?????????????????????????????????????????????????? | | ??#??????????????????????????????????????????????? | | ??????????"??????????????????????????????????????? | | ?????????????????????????????????????????????????? | | ?????????????????????????????????????????????????? | | ?????????????????????????????????????????????????? | | ?????????????????????????????????????????????????? | | ?????????????????????????????????????????????????? | | ?????????????????????????????????????????????????? | | ?????????????????????????????????????????????????? | | ?????????????????????????????????????????????????? | +----------------------------------------------------+ Best States ------------- Heat Dissipation 38 Energy Generation 10 Energy Capacity 250 Matter Stores 396 Matter Capacity 450 Sight Range 16 Terrain Scan Range 14 Terrain Scan Density 10 Evasion (%) 55 Item Schematics ----------------- Beam Cannon | -9/Materials | Scanalyzed Robot Schematics ------------------ None Fabricated ------------ Nothing Repaired ---------- Nothing Studied --------- Aluminum Leg | -9/Materials | Hacked Alien Tech Used ----------------- None Achievements -------------- Item+ One Hack Too Far Challenges ------------ None Game ------ Seed WeaponsSeismicDoomcannon Manual? 0 Play Time 00:14:26 Cumulative 1.8 hours Start 2026.02.10 @ 17:14:09 End 2026.02.10 @ 17:26:30 Sessions 2 Manual Loads 0 Difficulty Rogue Special Mode None Game No. 3 Rogue 3 Adventurer 0 Explorer 0 Win Type - Total 0 Types 0/0/0/0/0/0/0/0/0/0 Lore% 0 Gallery% 3 Achievement% 4 Wizard Run 0 Options --------- Layout 0 ASCII 1 Keyboard 1 Movement Vi Keybinds 0 Fullscreen 2 Font 18/Terminus Map View 76x50 Zoom Use 0% Tactical HUD 0 Map Filters NONE Filters NONE Steam 1 RUN: ad458adf-fc2b-43e9-b3c4-5dcf1217a741